bitfinex/quotes_BTCUSD_20240613
["timestamp","ask_amount","ask_price","bid_price","bid_amount"]
[1718298408505,0.01,66967.0,66966.0,0.10855]
[1718298408670,0.15431993,66967.0,66966.0,0.10855]
[1718298409271,0.64431993,66967.0,66966.0,0.10855]
[1718298409988,0.65831993,66967.0,66966.0,0.10855]
[1718298411778,0.9780817,66967.0,66966.0,0.10855]
[1718298412198,0.98472321,66967.0,66966.0,0.10855]
[1718298412408,0.89486144,66967.0,66966.0,0.10855]
[1718298412618,0.98572321,66967.0,66966.0,0.10855]
[1718298413061,0.97172321,66967.0,66966.0,0.10855]
[1718298413281,0.98472321,66967.0,66966.0,0.10855]
[1718298413485,0.99872321,66967.0,66966.0,0.10855]
[1718298414345,1.14109373,66967.0,66966.0,0.10855]
[1718298414559,1.14109373,66967.0,66960.0,0.00855]
[1718298414560,0.09986177,66961.0,66960.0,0.00855]
[1718298414786,0.6089817,66961.0,66960.0,0.00855]
[1718298415005,0.8316817,66961.0,66960.0,0.00855]
[1718298415651,0.74181993,66961.0,66960.0,0.00855]
[1718298415856,0.96984987,66961.0,66960.0,0.00855]
[1718298416061,0.5,66953.0,66952.0,0.00855]
[1718298416302,1.1334817,66953.0,66952.0,0.00855]
[1718298418129,1.1434817,66953.0,66952.0,0.00855]
[1718298418775,1.1574817,66953.0,66952.0,0.00855]
[1718298419431,1.18791746,66953.0,66952.0,0.00855]
[1718298419875,1.1574817,66953.0,66952.0,0.00855]
[1718298420088,1.1714817,66953.0,66952.0,0.00855]
[1718298420315,0.88191993,66953.0,66952.0,0.00855]
[1718298420527,1.1574817,66953.0,66952.0,0.00855]
[1718298421648,0.5,66941.0,66937.0,0.00085]
[1718298421877,1.04771993,66941.0,66937.0,0.00085]
[1718298422159,1.1375817,66941.0,66937.0,0.00085]
[1718298422589,1.04771993,66941.0,66937.0,0.00085]
[1718298423032,1.1375817,66941.0,66937.0,0.00085]
[1718298423276,1.44803987,66941.0,66937.0,0.00085]
[1718298423474,1.48103987,66941.0,66937.0,0.00085]
[1718298423709,1.3455817,66941.0,66937.0,0.00085]
[1718298423939,1.3375817,66941.0,66937.0,0.00085]
[1718298424345,1.3375817,66941.0,66935.0,0.00855]
[1718298424346,0.14986177,66936.0,66935.0,0.00855]
[1718298424552,0.2941817,66936.0,66935.0,0.00855]
[1718298424750,0.3171817,66936.0,66935.0,0.00855]
[1718298425424,0.42199084,66936.0,66935.0,0.00855]
[1718298425800,0.43599084,66936.0,66935.0,0.00855]
[1718298426226,0.42199084,66936.0,66935.0,0.00855]
[1718298426362,0.43599084,66936.0,66935.0,0.00855]
[1718298426570,0.3451817,66936.0,66935.0,0.00855]
[1718298428687,0.3451817,66936.0,66932.0,0.00855]
[1718298428688,0.14986177,66935.0,66932.0,0.00855]
[1718298428977,0.4741817,66935.0,66932.0,0.00855]
[1718298429376,0.80686177,66933.0,66932.0,0.00855]
[1718298429590,0.80686177,66933.0,66908.0,0.0225]
[1718298429591,0.657,66924.0,66908.0,0.0225]
[1718298429791,1.1089817,66924.0,66908.0,0.0225]
[1718298429996,1.3316817,66924.0,66908.0,0.0225]
[1718298431888,1.3456817,66924.0,66908.0,0.0225]
[1718298432381,1.3316817,66924.0,66908.0,0.0225]
[1718298432836,1.48384987,66924.0,66908.0,0.0225]
[1718298433644,1.49784987,66924.0,66908.0,0.0225]
[1718298435627,1.48384987,66924.0,66908.0,0.0225]
[1718298435956,1.49784987,66924.0,66908.0,0.0225]
[1718298436612,1.48384987,66924.0,66908.0,0.0225]
[1718298437058,1.49784987,66924.0,66908.0,0.0225]
[1718298438618,1.54784987,66924.0,66908.0,0.0225]
[1718298439654,1.31981993,66924.0,66911.0,0.0877]
[1718298439867,0.69431993,66924.0,66911.0,0.20593823]
[1718298440071,0.71293517,66924.0,66911.0,0.1958]
[1718298440287,0.72693517,66924.0,66911.0,0.1958]
[1718298440457,0.75093517,66924.0,66911.0,0.1958]
[1718298440672,0.73693517,66924.0,66911.0,0.1958]
[1718298440814,0.81279694,66924.0,66911.0,0.1958]
[1718298441224,0.82679694,66924.0,66911.0,0.1958]
[1718298441423,0.77679694,66924.0,66911.0,0.1958]
[1718298441772,1.14933985,66924.0,66908.0,0.0225]
[1718298441975,1.25903985,66924.0,66908.0,0.0225]
[1718298442188,1.27303985,66924.0,66908.0,0.0225]
[1718298442624,0.5,66910.0,66908.0,0.0225]
[1718298442789,0.14431993,66909.0,66908.0,0.0225]
[1718298442995,0.2341817,66909.0,66908.0,0.0225]
[1718298443565,0.14431993,66909.0,66908.0,0.0225]
[1718298443763,0.2341817,66909.0,66908.0,0.0225]
[1718298444356,0.35980987,66909.0,66908.0,0.0225]
[1718298445017,0.37380987,66909.0,66908.0,0.0225]
[1718298445251,0.2581817,66909.0,66908.0,0.0225]
[1718298445637,0.2581817,66909.0,66905.0,0.00504193]
[1718298445638,0.23606177,66906.0,66905.0,0.00504193]
[1718298445851,0.5373817,66906.0,66905.0,0.00504193]
[1718298446055,0.5603817,66906.0,66905.0,0.00504193]
[1718298446258,0.6713817,66906.0,66905.0,0.00504193]
[1718298446463,0.59986177,66900.0,66899.0,0.00855]
[1718298446684,0.9438817,66900.0,66899.0,0.00855]
[1718298447087,0.5,66886.0,66879.0,0.204]
[1718298447296,0.65431993,66886.0,66874.0,0.01013823]
[1718298447500,0.67731993,66886.0,66875.0,0.01013823]
[1718298447739,0.64431993,66886.0,66883.0,0.0883]
[1718298447965,0.64431993,66886.0,66877.0,0.0883]
[1718298448168,0.7441817,66886.0,66873.0,0.00855]
[1718298448376,0.8512817,66886.0,66873.0,0.00855]
[1718298448570,0.5,66874.0,66873.0,0.00855]
[1718298448789,0.64431993,66874.0,66873.0,0.00855]
[1718298448988,0.64431993,66874.0,66873.0,0.01486962]
[1718298449194,0.64431993,66874.0,66873.0,0.00855]
[1718298449403,0.64431993,66874.0,66873.0,0.01486962]
[1718298450165,0.65531993,66874.0,66873.0,0.01486962]
[1718298450749,0.511,66874.0,66873.0,0.24955277]
[1718298450993,0.522,66874.0,66873.0,0.24955277]
[1718298451358,0.511,66874.0,66873.0,0.34352844]
[1718298451554,0.5,66874.0,66873.0,0.34352844]
[1718298451761,0.511,66874.0,66873.0,0.34352844]
[1718298452190,0.5,66874.0,66873.0,0.34352844]
[1718298452390,0.5,66874.0,66873.0,0.37361159]
[1718298452876,0.511,66874.0,66873.0,0.34352844]
[1718298453100,0.64431993,66874.0,66873.0,0.21946962]
[1718298453303,0.64431993,66874.0,66873.0,0.01486962]
[1718298453931,0.66631993,66874.0,66873.0,0.01486962]
[1718298455588,0.64431993,66874.0,66873.0,0.01486962]
[1718298455988,0.65831993,66874.0,66873.0,0.01486962]
[1718298456188,0.64431993,66874.0,66873.0,0.01486962]
[1718298456662,0.65731993,66874.0,66873.0,0.01486962]
[1718298457097,0.66931993,66874.0,66873.0,0.01486962]
[1718298457927,0.65731993,66874.0,66873.0,0.01486962]
[1718298458191,0.64431993,66874.0,66873.0,0.01486962]
[1718298458453,0.65631993,66874.0,66873.0,0.01486962]
[1718298458685,0.67031993,66874.0,66873.0,0.01486962]
[1718298458905,0.64431993,66874.0,66873.0,0.01486962]
[1718298459345,0.65731993,66874.0,66873.0,0.01486962]
[1718298459530,0.64431993,66874.0,66873.0,0.01486962]
[1718298459961,0.67658052,66874.0,66873.0,0.01486962]
[1718298460346,0.68858052,66874.0,66873.0,0.01486962]
[1718298460907,0.67658052,66874.0,66873.0,0.01486962]
[1718298461915,0.67558052,66874.0,66873.0,0.01486962]
[1718298462080,0.66258052,66874.0,66873.0,0.01486962]
[1718298462369,0.67658052,66874.0,66873.0,0.01486962]
[1718298462583,0.69058052,66874.0,66873.0,0.01486962]
[1718298462825,0.67658052,66874.0,66873.0,0.01486962]
[1718298463267,0.69058052,66874.0,66873.0,0.01486962]
[1718298463681,0.67658052,66874.0,66873.0,0.00855]
[1718298463892,0.67658052,66874.0,66873.0,0.01502841]
[1718298464104,0.69058052,66874.0,66873.0,0.01502841]
[1718298464547,0.67658052,66874.0,66873.0,0.01502841]
[1718298464736,0.67658052,66874.0,66873.0,0.04511156]
[1718298464737,0.51826059,66874.0,66873.0,0.04511156]
[1718298464950,0.5,66874.0,66873.0,0.04511156]
[1718298465156,0.528,66874.0,66873.0,0.01502841]
[1718298465365,0.514,66874.0,66873.0,0.04511156]
[1718298465575,0.5,66874.0,66873.0,0.04511156]
[1718298465780,0.514,66874.0,66873.0,0.04511156]
[1718298466200,0.5,66874.0,66873.0,0.04511156]
[1718298466406,0.5,66874.0,66873.0,0.01502841]
[1718298466407,0.64431993,66874.0,66873.0,0.01502841]
[1718298466615,0.65231993,66874.0,66873.0,0.01502841]
[1718298466821,0.65231993,66874.0,66873.0,0.00855]
[1718298467189,0.66631993,66874.0,66873.0,0.00855]
[1718298467603,0.65231993,66874.0,66873.0,0.00855]
[1718298467805,0.64431993,66874.0,66873.0,0.00855]
[1718298467974,0.65531993,66874.0,66873.0,0.00855]
[1718298468191,0.66631993,66874.0,66873.0,0.00855]
[1718298468593,0.5,66874.0,66873.0,0.00855]
[1718298468751,0.5,66874.0,66873.0,0.0150233]
[1718298468957,0.528,66874.0,66873.0,0.0150233]
[1718298469271,0.514,66874.0,66873.0,0.0150233]
[1718298469694,0.527,66874.0,66873.0,0.0150233]
[1718298470307,0.513,66874.0,66873.0,0.0150233]
[1718298470918,0.524,66874.0,66873.0,0.0150233]
[1718298471253,0.511,66874.0,66873.0,0.0150233]
[1718298471390,0.5,66874.0,66873.0,0.0150233]
[1718298471590,0.514,66874.0,66873.0,0.0150233]
[1718298471824,0.67231993,66874.0,66873.0,0.0150233]
[1718298472142,0.65831993,66874.0,66873.0,0.0150233]
[1718298472280,0.64431993,66874.0,66873.0,0.0150233]
[1718298472482,0.65731993,66874.0,66873.0,0.0150233]
[1718298472762,0.64431993,66874.0,66873.0,0.0150233]
[1718298473146,0.65531993,66874.0,66873.0,0.0150233]
[1718298473941,0.66631993,66874.0,66873.0,0.0150233]
[1718298474542,0.64431993,66874.0,66873.0,0.0150233]
[1718298475077,0.66931993,66874.0,66873.0,0.0150233]
[1718298475315,0.65631993,66874.0,66873.0,0.00855]
[1718298475478,0.64431993,66874.0,66873.0,0.00855]
[1718298475845,0.65731993,66874.0,66873.0,0.00855]
[1718298476045,0.64431993,66874.0,66873.0,0.00855]
[1718298476650,0.65831993,66874.0,66873.0,0.00855]
[1718298477220,0.67031993,66874.0,66873.0,0.00855]
[1718298477875,0.65831993,66874.0,66873.0,0.00855]
[1718298478002,0.64431993,66874.0,66873.0,0.00855]
[1718298478421,0.65831993,66874.0,66873.0,0.00855]
[1718298478821,0.67231993,66874.0,66873.0,0.00855]
[1718298482994,0.76021993,66874.0,66873.0,0.00855]
[1718298483341,0.028,66874.0,66873.0,0.21988823]
[1718298483544,0.028,66874.0,66873.0,0.46153011]
[1718298483867,0.014,66874.0,66873.0,0.39584339]
[1718298484035,0.014,66874.0,66873.0,0.45787187]
[1718298484225,0.028,66874.0,66873.0,0.45787187]
[1718298484430,0.014,66874.0,66873.0,0.45787187]
[1718298485256,0.500946,66885.0,66881.0,0.01013823]
[1718298485257,0.000946,66885.0,66881.0,0.01013823]
[1718298485494,0.000946,66885.0,66874.0,0.04]
[1718298485495,0.14431993,66884.0,66882.0,0.03008315]
[1718298485695,0.14431993,66884.0,66883.0,0.2017]
[1718298485917,0.14431993,66884.0,66883.0,0.20814572]
[1718298486383,0.14431993,66884.0,66883.0,0.38774287]
[1718298486606,0.000946,66885.0,66884.0,0.21959515]
[1718298486807,0.000946,66885.0,66884.0,0.47335477]
[1718298487252,0.014946,66885.0,66884.0,0.47335477]
[1718298487832,0.000946,66885.0,66884.0,0.47335477]
[1718298488268,0.000946,66885.0,66884.0,0.47435477]
[1718298488874,0.000946,66885.0,66884.0,0.47535111]
[1718298489244,0.000946,66885.0,66884.0,0.47435111]
[1718298489962,0.000946,66885.0,66884.0,0.47335111]
[1718298490165,0.000946,66885.0,66884.0,0.41333713]
[1718298490355,0.000946,66885.0,66884.0,0.41533713]
[1718298490989,0.000946,66885.0,66884.0,0.41333713]
[1718298491386,0.000946,66885.0,66884.0,0.52713713]
[1718298491645,0.000946,66885.0,66884.0,0.52513713]
[1718298491834,0.000946,66885.0,66884.0,0.52313713]
[1718298492063,0.000946,66885.0,66884.0,0.52413713]
[1718298492387,0.14526593,66885.0,66884.0,0.10744198]
[1718298492519,0.14526593,66885.0,66884.0,0.00744198]
[1718298492732,0.14526593,66885.0,66884.0,0.00644198]
[1718298493171,0.14526593,66885.0,66877.0,0.03008315]
[1718298493445,0.00744,66878.0,66877.0,0.03008315]
[1718298494214,0.00744,66878.0,66877.0,0.60946715]
[1718298494438,0.00744,66878.0,66877.0,0.72456715]
[1718298494755,0.00744,66878.0,66877.0,1.13362315]
[1718298494959,0.00844,66878.0,66877.0,1.23095939]
[1718298495161,0.00844,66878.0,66877.0,0.94190339]
[1718298495365,0.00844,66878.0,66877.0,0.93190339]
[1718298495562,0.00844,66878.0,66877.0,0.93290339]
[1718298495761,0.00844,66878.0,66877.0,0.63381004]
[1718298495963,0.00844,66878.0,66877.0,0.58952739]
[1718298496164,0.00844,66878.0,66877.0,0.58852739]
[1718298496565,0.00844,66878.0,66877.0,0.58952739]
[1718298496566,0.00944,66878.0,66877.0,0.58952739]
[1718298496859,0.00944,66878.0,66877.0,0.43999939]
[1718298497086,0.00944,66878.0,66877.0,0.37798315]
[1718298497704,0.00944,66878.0,66877.0,0.82656715]
[1718298497891,0.00944,66878.0,66877.0,1.1876392]
[1718298498055,0.00944,66878.0,66877.0,0.5903872]
[1718298498574,0.00944,66878.0,66877.0,0.63466985]
[1718298498904,0.00944,66878.0,66877.0,0.93372585]
[1718298499020,0.00944,66878.0,66877.0,0.82742715]
[1718298499218,0.00944,66878.0,66877.0,0.52837115]
[1718298500231,0.00944,66878.0,66877.0,0.37884315]
[1718298500888,0.00944,66878.0,66877.0,0.38482955]
[1718298501297,0.00944,66878.0,66877.0,0.53435755]
[1718298501507,0.00944,66878.0,66877.0,0.55195335]
[1718298501808,0.00944,66878.0,66877.0,0.86100935]
[1718298502392,0.00944,66878.0,66877.0,1.16006535]
[1718298502802,0.00944,66878.0,66877.0,1.45912135]
[1718298503612,0.00944,66878.0,66877.0,1.16006535]
[1718298503988,0.00944,66878.0,66877.0,1.45912135]
[1718298504168,0.00944,66878.0,66877.0,1.60344128]
[1718298504799,0.00944,66878.0,66877.0,1.66545308]
[1718298505229,0.00944,66878.0,66877.0,1.97551367]
[1718298506924,0.00944,66878.0,66877.0,1.94961367]
[1718298508060,0.00944,66878.0,66877.0,1.9496089]
[1718298508461,0.00944,66878.0,66877.0,1.8875971]
[1718298508652,0.00944,66878.0,66877.0,1.94960782]
[1718298509822,0.00944,66878.0,66877.0,0.19859115]
[1718298510032,0.00944,66878.0,66877.0,0.1088464]
[1718298510239,0.00944,66878.0,66877.0,0.0088464]
[1718298510671,0.00844,66878.0,66877.0,0.0078464]
[1718298510808,0.00844,66878.0,66877.0,0.00086]
[1718298511011,0.00844,66878.0,66877.0,0.00186]
[1718298511414,0.01344,66878.0,66877.0,0.00186]
[1718298511611,0.15675993,66878.0,66877.0,0.00086]
[1718298511817,0.23505993,66878.0,66877.0,0.00086]
[1718298512094,0.35535993,66878.0,66877.0,0.00086]
[1718298512687,0.35035993,66878.0,66877.0,0.00086]
[1718298513033,0.36435993,66878.0,66877.0,0.00086]
[1718298513272,0.35035993,66878.0,66877.0,0.00086]
[1718298513454,0.35035993,66878.0,66877.0,0.12491673]
[1718298513655,0.35135993,66878.0,66877.0,0.12491673]
[1718298513996,0.33735993,66878.0,66877.0,0.12491673]
[1718298514213,0.35135993,66878.0,66877.0,0.00086]
[1718298514413,0.35135993,66878.0,66877.0,0.17505498]
[1718298514414,0.03544,66878.0,66877.0,0.17505498]
[1718298514563,0.02144,66878.0,66877.0,0.12491675]
[1718298514764,0.02144,66878.0,66877.0,0.13030473]
[1718298515163,0.17975993,66878.0,66877.0,0.13030473]
[1718298515577,0.19812268,66878.0,66877.0,0.13030473]
[1718298515776,0.17975993,66878.0,66877.0,0.13030473]
[1718298516186,0.03544,66878.0,66877.0,0.13030473]
[1718298516388,0.02144,66878.0,66877.0,0.13030473]
[1718298516913,0.02144,66878.0,66877.0,0.33744784]
[1718298516914,0.03544,66878.0,66877.0,0.33744784]
[1718298517128,0.00744,66878.0,66877.0,0.70286061]
[1718298517328,0.00744,66878.0,66877.0,0.77487907]
[1718298517329,0.02144,66878.0,66877.0,0.77487907]
[1718298517540,0.03544,66878.0,66877.0,1.07393507]
[1718298517748,0.03544,66878.0,66877.0,1.52832998]
[1718298517911,0.02144,66878.0,66877.0,0.85326609]
[1718298518356,0.01544,66878.0,66877.0,1.00279409]
[1718298518943,0.01544,66878.0,66877.0,0.85326609]
[1718298519347,0.01544,66878.0,66877.0,0.36239111]
[1718298519720,0.00744,66878.0,66877.0,0.30037265]
[1718298519921,0.01444,66878.0,66877.0,0.30037265]
[1718298520048,0.01544,66878.0,66877.0,0.30137265]
[1718298520845,0.23275993,66878.0,66877.0,0.1302895]
[1718298521271,0.22575993,66878.0,66877.0,0.1312895]
[1718298521487,0.22575993,66878.0,66877.0,0.00724798]
[1718298521888,0.22575993,66878.0,66877.0,0.12591754]
[1718298522095,0.22575993,66878.0,66877.0,0.00186]
[1718298522290,0.22575993,66878.0,66877.0,0.00854757]
[1718298522490,0.22575993,66878.0,66877.0,0.12692183]
[1718298522828,0.00744,66878.0,66877.0,0.17161119]
[1718298523316,0.00744,66878.0,66877.0,0.35022234]
[1718298523317,0.01444,66878.0,66877.0,0.35022234]
[1718298523760,0.02244,66878.0,66877.0,0.35022234]
[1718298523965,0.02214,66878.0,66877.0,0.53962234]
[1718298524093,0.02214,66878.0,66877.0,0.91069728]
[1718298524300,0.01514,66878.0,66877.0,1.28567543]
[1718298524527,0.01514,66878.0,66877.0,1.35204363]
[1718298524902,0.02214,66878.0,66877.0,1.35204363]
[1718298525111,0.01414,66878.0,66877.0,1.32997419]
[1718298525329,0.01414,66878.0,66877.0,1.34203537]
[1718298525536,0.00714,66878.0,66877.0,1.28566717]
[1718298525715,0.00714,66878.0,66877.0,1.27566717]
[1718298525866,0.00914,66878.0,66877.0,1.28566366]
[1718298526077,0.00914,66878.0,66877.0,1.28562593]
[1718298526279,0.00914,66878.0,66877.0,1.37411687]
[1718298526480,0.01214,66878.0,66877.0,1.37411687]
[1718298526796,0.00914,66878.0,66877.0,1.37411687]
[1718298526996,0.00914,66878.0,66877.0,1.67317287]
[1718298527197,0.01214,66878.0,66877.0,1.67317287]
[1718298527781,0.01214,66878.0,66877.0,1.37424139]
[1718298528188,0.00714,66878.0,66877.0,1.28562593]
[1718298528506,0.00814,66878.0,66877.0,1.28862593]
[1718298528706,0.00814,66878.0,66877.0,1.29162593]
[1718298528707,0.00914,66878.0,66877.0,1.29162593]
[1718298529327,0.00914,66878.0,66877.0,1.40223961]
[1718298529563,0.00914,66878.0,66877.0,1.70128895]
[1718298529759,0.00914,66878.0,66877.0,1.40223295]
[1718298529960,0.00914,66878.0,66877.0,1.70128895]
[1718298530370,0.00914,66878.0,66877.0,1.84560888]
[1718298530570,0.00885509,66878.0,66877.0,1.54655288]
[1718298530795,0.00885509,66878.0,66877.0,1.7349952]
[1718298531017,0.00885509,66878.0,66877.0,1.4359392]
[1718298531286,0.002,66878.0,66877.0,1.54670461]
[1718298531518,0.002,66878.0,66877.0,1.7349952]
[1718298531850,0.002,66878.0,66877.0,1.4359392]
[1718298532790,0.002,66878.0,66877.0,1.7349952]
[1718298533148,0.002,66878.0,66877.0,1.73499279]
[1718298533790,0.002,66878.0,66877.0,1.84572778]
[1718298533987,0.002,66878.0,66877.0,1.54667178]
[1718298534749,0.002,66878.0,66877.0,1.54666822]
[1718298535107,0.002,66878.0,66877.0,1.43593323]
[1718298535824,0.002,66878.0,66877.0,1.42909323]
[1718298536059,0.002,66878.0,66877.0,2.05673185]
[1718298536224,0.002,66878.0,66877.0,1.94603113]
[1718298537120,0.002,66878.0,66877.0,2.04603113]
[1718298537346,0.002,66878.0,66877.0,1.94603113]
[1718298538787,0.002,66878.0,66877.0,1.88401219]
[1718298539040,0.002,66878.0,66877.0,1.94602177]
[1718298541158,0.002,66878.0,66877.0,1.44726577]
[1718298541371,0.002,66878.0,66877.0,0.52953253]
[1718298541781,0.002,66878.0,66877.0,0.90499824]
[1718298542002,0.002,66878.0,66877.0,1.20405971]
[1718298542240,0.002,66878.0,66877.0,1.51411421]
[1718298542476,0.002,66878.0,66877.0,1.55837518]
[1718298542691,0.002,66878.0,66877.0,1.4477045]
[1718298543091,0.002,66878.0,66877.0,1.59202443]
[1718298543298,0.002,66878.0,66877.0,2.30218043]
[1718298543545,0.002,66878.0,66877.0,2.4882102]
[1718298543759,0.002,66878.0,66877.0,3.7271512]
[1718298544427,0.002,66878.0,66877.0,3.40650934]
[1718298544643,0.002,66878.0,66877.0,2.38820134]
[1718298545086,0.002,66878.0,66877.0,3.10586034]
[1718298545294,0.002,66878.0,66877.0,3.20586034]
[1718298545503,0.002,66878.0,66877.0,2.80680434]
[1718298545721,0.002,66878.0,66877.0,2.50084234]
[1718298546364,0.00172081,66878.0,66877.0,2.50084234]
[1718298547225,0.00172081,66878.0,66877.0,2.78171644]
[1718298547444,0.00172081,66878.0,66877.0,2.98169591]
[1718298548821,0.00172081,66878.0,66877.0,3.09990193]
[1718298549200,0.00172081,66878.0,66877.0,2.99990193]
[1718298551078,0.00172081,66878.0,66877.0,2.70584693]
[1718298551718,0.00172081,66878.0,66877.0,2.40679093]
[1718298553855,0.00172081,66878.0,66877.0,2.03474881]
[1718298554075,0.00172081,66878.0,66877.0,2.40680706]
[1718298554863,0.00172081,66878.0,66877.0,2.28916506]
[1718298555065,0.00172081,66878.0,66877.0,2.31035357]
[1718298555636,0.00172081,66878.0,66877.0,2.44328506]
[1718298556475,0.00172081,66878.0,66877.0,2.74234106]
[1718298556665,0.00172081,66878.0,66877.0,3.03099527]
[1718298556879,0.00172081,66878.0,66877.0,3.42171295]
[1718298557204,0.00072081,66878.0,66877.0,3.13005874]
[1718298557407,0.00172081,66878.0,66877.0,3.14105874]
[1718298557581,0.001,66878.0,66877.0,3.20611573]
[1718298558189,0.001,66878.0,66877.0,3.10611573]
[1718298558374,0.001,66878.0,66877.0,3.52872345]
[1718298558775,0.002,66878.0,66877.0,3.54272345]
[1718298559254,0.002,66878.0,66877.0,3.64272345]
[1718298559594,0.002,66878.0,66877.0,3.72272345]
[1718298560100,0.002,66878.0,66877.0,3.62019622]
[1718298560342,0.002,66878.0,66877.0,3.62097275]
[1718298560521,0.002,66878.0,66877.0,3.48822066]
[1718298561167,0.002,66878.0,66877.0,3.62098739]
[1718298561455,0.002,66878.0,66877.0,3.48822066]
[1718298561699,0.002,66878.0,66877.0,3.58822066]
[1718298561925,0.002,66878.0,66877.0,3.58908066]
[1718298562135,0.002946,66878.0,66877.0,3.58908066]
[1718298562390,0.002946,66878.0,66877.0,3.2984485]
[1718298562567,0.002946,66878.0,66877.0,3.58931876]
[1718298562777,0.002946,66878.0,66877.0,3.57111274]
[1718298564163,0.000946,66885.0,66877.0,3.57111274]
[1718298564164,0.000946,66885.0,66884.0,1.17866515]
[1718298564387,0.1718,66899.0,66898.0,0.51254615]
[1718298564611,0.1718,66899.0,66898.0,1.27103227]
[1718298564831,0.1718,66899.0,66898.0,1.69212747]
[1718298565051,0.1718,66899.0,66898.0,1.40915432]
[1718298565273,0.1718,66899.0,66898.0,1.71911804]
[1718298565515,0.1718,66899.0,66898.0,1.51094391]
[1718298565737,0.1718,66899.0,66898.0,1.42242289]
[1718298566188,0.0739,66899.0,66898.0,1.42242289]
[1718298566405,0.0739,66899.0,66898.0,1.48880215]
[1718298566583,0.0979,66903.0,66902.0,0.81146315]
[1718298566813,0.0979,66903.0,66902.0,0.81345343]
[1718298567049,0.1706,66903.0,66902.0,0.81345343]
[1718298567300,0.1706,66903.0,66902.0,1.15665107]
[1718298567511,0.1706,66903.0,66902.0,0.80345343]
[1718298567732,0.01778082,66917.0,66916.0,0.01013823]
[1718298567973,0.43295979,66929.0,66916.0,0.12401942]
[1718298567974,0.5,66923.0,66916.0,0.12401942]
[1718298568176,0.14431993,66922.0,66917.0,0.12401942]
[1718298568410,0.1681,66921.0,66918.0,0.12401942]
[1718298568643,0.14431993,66920.0,66919.0,0.12401942]
[1718298568865,0.31241993,66920.0,66919.0,0.12401942]
[1718298569377,0.31241993,66920.0,66919.0,0.12888154]
[1718298569875,0.1681,66920.0,66919.0,0.12888154]
[1718298570578,0.1681,66920.0,66919.0,0.13901977]
[1718298570803,0.1681,66920.0,66919.0,0.27831554]
[1718298571018,0.1681,66920.0,66919.0,0.30935895]
[1718298571245,0.1681,66920.0,66919.0,0.34437895]
[1718298571456,0.1681,66920.0,66919.0,0.1308418]
[1718298571676,0.51211993,66920.0,66919.0,0.1308418]
[1718298571887,0.51211993,66920.0,66919.0,0.002]
[1718298572307,0.34401993,66920.0,66911.0,0.03402]
[1718298572495,0.0934,66917.0,66912.0,0.12398888]
[1718298572632,0.0934,66915.0,66913.0,0.1]
[1718298572840,0.1681,66914.0,66913.0,0.1]
[1718298573069,0.1681,66914.0,66913.0,0.2239895]
[1718298573647,0.1681,66914.0,66913.0,0.22398919]
[1718298573851,0.31241993,66914.0,66913.0,0.22398919]
[1718298574036,0.31241993,66914.0,66904.0,0.50682]
[1718298574037,0.51211993,66914.0,66904.0,0.50682]
[1718298574290,0.51211993,66914.0,66897.0,0.84588539]
[1718298574291,0.1703,66906.0,66895.0,0.50682]
[1718298574493,0.08986177,66899.0,66890.0,0.04425693]
[1718298574718,0.24245996,66900.0,66888.0,0.4728]
[1718298574719,0.1703,66893.0,66888.0,0.4728]
[1718298574926,0.1703,66891.0,66888.0,0.4728]
[1718298575132,0.1703,66889.0,66887.0,0.03402]
[1718298575354,0.1997,66896.0,66887.0,0.03402]
[1718298575355,0.1703,66888.0,66887.0,0.03402]
[1718298575562,0.1703,66888.0,66887.0,0.16819621]
[1718298575987,0.1703,66888.0,66887.0,0.17218394]
[1718298576389,0.1703,66888.0,66887.0,0.16204571]
[1718298577027,0.0725,66890.0,66889.0,0.03402]
[1718298577235,0.17,66890.0,66889.0,0.12403798]
[1718298577433,0.1725,66890.0,66889.0,0.12802191]
[1718298577643,0.1725,66890.0,66889.0,0.00398773]
[1718298578070,0.1725,66890.0,66888.0,0.101]
[1718298578306,0.1725,66889.0,66888.0,0.1]
[1718298578942,0.0742,66888.0,66884.0,0.03402]
[1718298579145,0.0742,66888.0,66882.0,0.01013823]
[1718298579146,0.0742,66888.0,66885.0,0.03402]
[1718298579607,0.0962,66887.0,66885.0,0.03402]
[1718298579749,0.0742,66886.0,66884.0,0.03402]
[1718298579953,0.0742,66886.0,66885.0,0.03402]
[1718298580369,0.0742,66886.0,66879.0,0.01013823]
[1718298580370,0.0962,66885.0,66879.0,0.01013823]
[1718298580587,0.0962,66885.0,66882.0,0.04415823]
[1718298580588,0.0742,66884.0,66882.0,0.04415823]
[1718298580800,0.0742,66884.0,66883.0,0.01013823]
[1718298581213,0.0742,66884.0,66882.0,0.13402]
[1718298581691,0.0742,66884.0,66882.0,0.14415823]
[1718298581815,0.0742,66884.0,66882.0,0.13402]
[1718298582216,0.0742,66884.0,66882.0,0.03402]
[1718298582426,0.0915,66883.0,66878.0,0.1]
[1718298582624,0.1997,66881.0,66878.0,0.11013823]
[1718298582828,0.1997,66881.0,66880.0,0.03402]
[1718298583161,0.0788,66882.0,66880.0,0.06410315]
[1718298583374,0.0788,66882.0,66881.0,0.04415823]
[1718298583993,0.0788,66882.0,66881.0,0.06410315]
[1718298584420,0.0788,66882.0,66881.0,0.04415823]
[1718298585025,0.0788,66882.0,66881.0,0.06510315]
[1718298585506,0.0788,66882.0,66881.0,0.04515823]
[1718298586028,0.31351993,66882.0,66881.0,0.001]
[1718298586840,0.31351993,66882.0,66881.0,0.002]
[1718298587186,0.23471993,66882.0,66877.0,0.00086]
[1718298587387,0.0732,66881.0,66878.0,0.00383376]
[1718298587929,0.24371993,66882.0,66877.0,0.00086]
[1718298587930,0.0732,66879.0,66877.0,0.00086]
[1718298588327,0.50761993,66878.0,66877.0,0.00086]
[1718298589139,0.30791993,66878.0,66877.0,0.00086]
[1718298589274,0.50761993,66878.0,66877.0,0.00086]
[1718298590898,0.53561993,66878.0,66877.0,0.00286]
[1718298591105,0.52161993,66878.0,66877.0,0.00186]
[1718298591808,0.53561993,66878.0,66877.0,0.00286]
[1718298592300,1.03561993,66878.0,66877.0,0.00286]
[1718298592514,0.01598,66874.0,66873.0,0.00855]
[1718298592731,0.6202617,66874.0,66873.0,0.00855]